fUST/lending_fUST_20240108
["ID","MTS","AMOUNT","RATE_DAILY","PERIOD"]
[310768214,1704721626253,-1988.77445231,0.00026061,2]
[310768215,1704721626276,-1030.14329585,0.00026062,2]
[310768216,1704721626298,-166.666666,0.00026073,2]
[310768217,1704721626322,-24900.0,0.00026289,2]
[310768218,1704721626343,-941.487898,0.0002715,2]
[310768219,1704721626366,-7070.48,0.00027849,3]
[310768220,1704721626388,-928.58362534,0.00027859,3]
[310768253,1704721835341,-166.666666,0.00026568,2]
[310768254,1704721835351,-356.72008972,0.0002702,2]
[310768307,1704721838794,-5260.50810908,0.0002702,2]
[310768308,1704721838804,-1988.77445231,0.00027021,2]
[310768309,1704721838814,-30202.902,0.00027023,2]
[310768310,1704721838823,-18691.8841532,0.00027111,2]
[310768311,1704721838832,-3931.39139051,0.00027859,3]
[310768312,1704721838882,-4916.91860949,0.00027859,3]
[310768313,1704721838891,-7373.6,0.00027859,3]
[310768314,1704721838901,-19251.48618645,0.00027869,2]
[310768315,1704721838910,-16938.25937026,0.00027869,2]
[310768316,1704721838920,-307.25744438,0.00027869,2]
[310768317,1704721838929,-1231.18781939,0.00027869,2]
[310768318,1704721838938,-1044.29621598,0.00028192,2]
[310768319,1704721838947,-200.0,0.00028669,15]
[310768320,1704721838957,-276.94892415,0.00029941,2]
[310768321,1704721838966,-253.91413904,0.00029941,2]
[310768322,1704721838975,-525.0,0.00029941,2]
[310768323,1704721838985,-155.0,0.0003,2]
[310768324,1704721838995,-198.0,0.0003,2]
[310768325,1704721839005,-686.28515021,0.0003,4]
[310768326,1704721839014,-3155.4135903,0.00030137,2]
[310768327,1704721839024,-1028.57928007,0.00030686,4]
[310768328,1704721839033,-299.95589531,0.00030686,4]
[310768329,1704721839043,-180.40922875,0.00030686,2]
[310768330,1704721839053,-500.0,0.00030686,2]
[310768331,1704721839064,-167.14693713,0.00030686,2]
[310768332,1704721839075,-220.85098481,0.00030686,2]
[310768333,1704721839084,-500.0,0.00030686,2]
[310768334,1704721839094,-476.99504328,0.00030686,2]
[310768335,1704721839103,-500.0,0.00030686,2]
[310768336,1704721839112,-500.0,0.00030686,2]
[310768337,1704721839123,-313.64064178,0.00030686,2]
[310768338,1704721839133,-500.0,0.00030686,2]
[310768339,1704721839142,-500.0,0.00030686,2]
[310768340,1704721839151,-276.57796274,0.00030686,2]
[310768341,1704721839161,-8896.51747827,0.00030687,2]
[310768342,1704721839170,-23801.02066394,0.00030688,4]
[310768343,1704721839179,-312.45876852,0.00030998,4]
[310768344,1704721839188,-1194.60979452,0.00030998,4]
[310768345,1704721839198,-521.63707582,0.00030998,4]
[310768346,1704721839207,-212.86429376,0.00030998,4]
[310768347,1704721839217,-264.75182318,0.00030998,4]
[310768348,1704721839226,-3934.05208776,0.00030998,2]
[310768349,1704721839235,-626.44,0.00030999,2]
[310768350,1704721839244,-626.44,0.00030999,2]
[310768351,1704721839253,-626.44,0.00030999,2]
[310768352,1704721839263,-626.44,0.00030999,2]
[310768353,1704721839272,-183.2555687,0.00030999,4]
[310768354,1704721839281,-626.46,0.00030999,2]
[310768355,1704721839291,-12322.95646933,0.00031,4]
[310768356,1704721839302,-10896.51937195,0.00031,4]
[310768357,1704721839314,-2028.82284411,0.00031,4]
[310768464,1704721843572,-471.11451146,0.0003099,3]
[310768465,1704721843583,-3274.97353831,0.0003099,3]
[310768513,1704721846544,-2398.57195023,0.0003099,3]
[310768515,1704721846554,-78669.52219593,0.00031,4]
[310768517,1704721846563,-280.0,0.00031536,15]
[310768519,1704721846572,-192.472331,0.00032462,2]
[310768521,1704721846582,-505.517955,0.000325,2]
[310768523,1704721846591,-972.89788871,0.00032539,2]
[310768525,1704721846603,-154.8915759,0.0003254,4]
[310768527,1704721846612,-4637.44434811,0.00032544,4]
[310768529,1704721846621,-5948.34132013,0.00032546,4]
[310768531,1704721846630,-500.0,0.00032876,7]
[310768533,1704721846639,-500.0,0.00032876,7]
[310768535,1704721846649,-500.0,0.00032876,7]
[310768537,1704721846660,-500.0,0.00032876,7]
[310768539,1704721846670,-485.23048133,0.00032876,7]
[310768541,1704721846681,-207.43347205,0.00032876,7]
[310768543,1704721846691,-184.94002916,0.00033,7]
[310768545,1704721846701,-198.0,0.00033,2]
[310768547,1704721846711,-157.0,0.00033,2]
[310768550,1704721846722,-338.16382898,0.00033833,5]
[310768551,1704721846731,-1000.0,0.00034,7]
[310768555,1704721846752,-1954.03142942,0.00034056,2]
[310768557,1704721846765,-4000.0,0.00034521,2]
[310768559,1704721846774,-157.0,0.00034521,2]
[310768561,1704721846785,-391.0,0.0003469,15]
[310768563,1704721846797,-150.0,0.00034966,2]
[310768565,1704721846807,-201.195,0.00034966,2]
[310768567,1704721846817,-150.0,0.00034966,2]
[310768569,1704721846827,-3224.47017263,0.00034993,4]
[310768571,1704721846838,-2652.49351926,0.00035,4]
[310768573,1704721846852,-5000.0,0.00035,2]
[310768575,1704721846862,-151.8519486,0.00035223,14]
[310768577,1704721846872,-5000.0,0.00035332,2]
[310768579,1704721846885,-6663.20742,0.00035333,4]
[310768581,1704721846894,-5000.0,0.00035334,2]
[310768583,1704721846905,-5000.0,0.00035337,2]
[310768585,1704721846915,-5000.0,0.00035337,2]
[310768587,1704721846925,-5000.0,0.00035338,2]
[310768589,1704721846936,-255.21293154,0.00035339,2]
[310768591,1704721846946,-3000.0,0.00035339,2]
[310768593,1704721846957,-155.18628924,0.0003534,4]
[310768595,1704721846967,-5000.0,0.00035342,2]
[310768597,1704721846977,-643.8592784,0.00035344,14]
[310768599,1704721846987,-5000.0,0.00035347,2]
[310768601,1704721846997,-5000.0,0.00035348,2]
[310768602,1704721847006,-5000.0,0.00035348,2]
[310768604,1704721847016,-5000.0,0.00035349,2]
[310768605,1704721847027,-154.31816384,0.0003535,14]
[310768606,1704721847038,-5000.0,0.0003535,2]
[310768607,1704721847048,-5000.0,0.0003535,2]
[310768608,1704721847059,-5000.0,0.00035352,2]
[310768609,1704721847069,-4369.1,0.00035357,2]
[310768610,1704721847080,-5000.0,0.00035357,2]
[310768611,1704721847091,-5000.0,0.00035362,2]
[310768612,1704721847102,-5000.0,0.00035363,2]
[310768613,1704721847112,-4999.99,0.00035365,2]
[310768614,1704721847122,-5000.0,0.00035365,2]
[310768615,1704721847131,-5000.0,0.00035368,2]
[310768616,1704721847142,-5000.0,0.00035368,2]
[310768617,1704721847152,-5000.0,0.00035371,2]
[310768618,1704721847163,-5000.0,0.00035372,2]
[310768619,1704721847173,-5000.0,0.00035376,2]
[310768620,1704721847183,-5000.0,0.00035376,2]
[310768621,1704721847192,-1592.84,0.00035377,2]
[310768622,1704721847202,-300.0,0.000354,18]
[310768623,1704721847212,-3474.99620869,0.00035438,4]
[310768624,1704721847223,-413.0,0.00035452,2]
[310768625,1704721847233,-643.8592784,0.00035491,14]
[310768626,1704721847244,-150.0,0.000356,4]
[310768627,1704721847253,-154.87609912,0.00035614,2]
[310768628,1704721847264,-6562.26616745,0.00035614,4]
[310768629,1704721847274,-638.44894353,0.00035614,4]
[310768630,1704721847283,-322.52163965,0.00035614,4]
[310768631,1704721847295,-274.97693088,0.00035614,30]
[310768632,1704721847304,-1346.48197059,0.00035614,4]
[310768633,1704721847314,-2494.02377284,0.00035614,2]
[310768634,1704721847476,-1049.14710212,0.00035614,2]
[310768635,1704721847486,-256.48314334,0.00035614,4]
[310768636,1704721847496,-359.90512707,0.00035614,2]
[310768637,1704721847506,-154.8915759,0.00035615,2]
[310768638,1704721847516,-246.70103048,0.00035616,3]
[310768639,1704721847526,-500.0,0.00035616,2]
[310768640,1704721847536,-500.0,0.00035616,2]
[310768641,1704721847546,-504.62005244,0.00035616,2]
[310768642,1704721847556,-500.0,0.00035616,2]
[310768643,1704721847566,-500.0,0.00035616,2]
[310768644,1704721847576,-500.0,0.00035616,2]
[310768645,1704721847586,-500.0,0.00035616,2]
[310768646,1704721847598,-500.0,0.00035616,2]
[310768647,1704721847609,-500.0,0.00035616,2]
[310768648,1704721847618,-500.0,0.00035616,2]
[310768649,1704721847630,-1653.58,0.00035616,2]
[310768650,1704721847641,-500.0,0.00035616,2]
[310768651,1704721847650,-500.0,0.00035616,2]
[310768652,1704721847660,-500.0,0.00035616,2]
[310768653,1704721847670,-500.0,0.00035616,2]
[310768654,1704721847680,-500.0,0.00035616,2]
[310768655,1704721847690,-526.78430089,0.00035616,2]
[310768656,1704721847699,-153.87932779,0.00035616,2]
[310768657,1704721847709,-656.83,0.00035616,2]
[310768658,1704721847721,-500.0,0.00035616,2]
[310768659,1704721847731,-500.0,0.00035616,2]
[310768660,1704721847741,-500.0,0.00035616,2]
[310768661,1704721847750,-500.0,0.00035616,2]
[310768662,1704721847759,-500.0,0.00035616,2]
[310768663,1704721847769,-500.0,0.00035616,2]
[310768664,1704721847779,-346.31997806,0.00035616,2]
[310768665,1704721847788,-500.0,0.00035616,2]
[310768666,1704721847798,-500.0,0.00035616,2]
[310768667,1704721847807,-500.0,0.00035616,2]
[310768668,1704721847817,-500.0,0.00035616,2]
[310768669,1704721847827,-569.67,0.00035616,2]
[310768670,1704721847836,-500.0,0.00035616,2]
[310768671,1704721847847,-500.0,0.00035616,2]
[310768672,1704721847857,-504.57903542,0.00035616,2]
[310768673,1704721847866,-500.0,0.00035616,2]
[310768674,1704721847875,-682.04,0.00035616,2]
[310768675,1704721847884,-534.31,0.00035616,2]
[310768676,1704721847894,-500.0,0.00035616,2]
[310768677,1704721847903,-500.0,0.00035616,2]
[310768678,1704721847913,-500.0,0.00035616,2]
[310768679,1704721847923,-500.0,0.00035616,2]
[310768680,1704721847932,-500.0,0.00035616,2]
[310768681,1704721847941,-518.5177157,0.00035616,2]
[310768682,1704721847950,-251.80710682,0.00035616,2]
[310768683,1704721847959,-552.6257611,0.00035616,2]
[310768684,1704721847969,-500.0,0.00035616,2]
[310768685,1704721847978,-503.19672187,0.00035616,2]
[310768686,1704721847987,-500.0,0.00035616,2]
[310768687,1704721847996,-500.0,0.00035616,2]
[310768688,1704721848006,-505.88889507,0.00035616,2]
[310768689,1704721848015,-1188.95,0.00035616,2]
[310768690,1704721848024,-181.45181432,0.00035616,2]
[310768691,1704721848034,-501.81411556,0.00035616,2]
[310768692,1704721848043,-500.0,0.00035616,2]
[310768693,1704721848052,-500.0,0.00035616,2]
[310768694,1704721848061,-502.58142477,0.00035616,2]
[310768695,1704721848071,-500.0,0.00035616,2]
[310768696,1704721848080,-500.0,0.00035616,2]
[310768697,1704721848090,-500.0,0.00035616,2]
[310768698,1704721848102,-502.96551217,0.00035616,2]
[310768699,1704721848112,-500.0,0.00035616,2]
[310768700,1704721848121,-500.0,0.00035616,2]
[310768701,1704721848131,-494.45260509,0.00035616,2]
[310768702,1704721848139,-504.15922534,0.00035616,2]
[310768703,1704721848149,-518.17446798,0.00035616,2]
[310768704,1704721848158,-500.0,0.00035616,2]
[310768705,1704721848168,-534.96716526,0.00035616,2]
[310768706,1704721848178,-537.48907591,0.00035616,2]
[310768707,1704721848187,-500.0,0.00035616,2]
[310768708,1704721848197,-500.0,0.00035616,2]
[310768709,1704721848206,-517.84601733,0.00035616,2]
[310768710,1704721848216,-349.63272372,0.00035616,2]
[310768711,1704721848226,-559.95,0.00035616,2]
[310768712,1704721848235,-503.86625205,0.00035616,2]
[310768713,1704721848244,-500.0,0.00035616,2]
[310768714,1704721848255,-500.0,0.00035616,2]
[310768715,1704721848265,-500.0,0.00035616,2]
[310768716,1704721848274,-355.71057563,0.00035616,2]
[310768717,1704721848283,-503.10249183,0.00035616,30]
[310768718,1704721848294,-402.77372549,0.00035616,2]
[310768719,1704721848303,-500.0,0.00035616,2]
[310768720,1704721848313,-500.0,0.00035616,2]
[310768721,1704721848324,-500.0,0.00035616,2]
[310768722,1704721848334,-500.0,0.00035616,2]
[310768723,1704721848346,-513.36800217,0.00035616,2]
[310768724,1704721848356,-500.0,0.00035616,2]
[310768725,1704721848365,-500.0,0.00035616,2]
[310768726,1704721848375,-500.0,0.00035616,2]
[310768727,1704721848385,-500.0,0.00035616,2]
[310768728,1704721848394,-1010.55423829,0.00035616,5]
[310768729,1704721848522,-500.0,0.00035616,2]
[310768730,1704721848533,-525.03737803,0.00035616,2]
[310768731,1704721848542,-500.0,0.00035616,2]
[310768732,1704721848552,-500.0,0.00035616,2]
[310768733,1704721848562,-500.0,0.00035616,2]
[310768734,1704721848571,-500.0,0.00035616,2]
[310768735,1704721848582,-500.0,0.00035616,2]
[310768736,1704721848592,-1445.73,0.00035616,2]
[310768737,1704721848601,-500.0,0.00035616,2]
[310768738,1704721848610,-500.0,0.00035616,2]
[310768739,1704721848619,-500.0,0.00035616,2]
[310768740,1704721848628,-500.0,0.00035616,2]
[310768741,1704721848638,-500.0,0.00035616,2]
[310768742,1704721848647,-500.0,0.00035616,2]
[310768743,1704721848656,-519.22223267,0.00035616,2]
[310768744,1704721848666,-500.0,0.00035616,2]
[310768745,1704721848675,-500.0,0.00035616,2]
[310768746,1704721848685,-500.0,0.00035616,2]
[310768747,1704721848694,-500.0,0.00035616,2]
[310768748,1704721848704,-1029.72,0.00035616,2]
[310768749,1704721848714,-188.56233448,0.00035616,2]
[310768750,1704721848723,-1464.92,0.00035616,2]
[310768751,1704721848732,-509.52500847,0.00035616,2]
[310768752,1704721848741,-500.0,0.00035616,2]
[310768753,1704721848751,-500.0,0.00035616,2]
[310768754,1704721848760,-500.0,0.00035616,2]
[310768755,1704721848770,-536.81,0.00035616,2]
[310768756,1704721848779,-500.0,0.00035616,2]
[310768757,1704721848789,-500.0,0.00035616,2]
[310768758,1704721848804,-500.0,0.00035616,2]
[310768759,1704721848814,-500.0,0.00035616,2]
[310768760,1704721848823,-500.0,0.00035616,2]
[310768761,1704721848833,-500.0,0.00035616,2]
[310768762,1704721848843,-500.0,0.00035616,2]
[310768763,1704721848852,-524.80636246,0.00035616,2]
[310768764,1704721848862,-500.0,0.00035616,2]
[310768765,1704721848872,-2126.62,0.00035616,2]
[310768766,1704721848884,-200.0,0.00035616,2]
[310768767,1704721848895,-501.76318539,0.00035616,2]
[310768768,1704721848904,-500.0,0.00035616,2]
[310768769,1704721848914,-500.0,0.00035616,2]
[310768770,1704721848923,-500.0,0.00035616,2]
[310768771,1704721848942,-500.0,0.00035616,2]
[310768772,1704721848954,-508.70413339,0.00035616,2]
[310768773,1704721848964,-500.0,0.00035616,2]
[310768774,1704721848974,-500.0,0.00035616,2]
[310768775,1704721848984,-500.0,0.00035616,2]
[310768776,1704721848994,-500.0,0.00035616,2]
[310768777,1704721849004,-500.0,0.00035616,2]
[310768778,1704721849014,-500.0,0.00035616,2]
[310768779,1704721849025,-500.0,0.00035616,2]
[310768780,1704721849035,-500.0,0.00035616,2]
[310768781,1704721849045,-500.0,0.00035616,2]
[310768782,1704721849055,-504.27259377,0.00035616,2]
[310768783,1704721849065,-500.0,0.00035616,2]
[310768784,1704721849074,-180.21967225,0.00035616,2]
[310768785,1704721849084,-500.0,0.00035616,2]
[310768786,1704721849095,-502.09640608,0.00035616,2]
[310768787,1704721849105,-500.0,0.00035616,2]
[310768788,1704721849115,-500.0,0.00035616,2]
[310768789,1704721849125,-501.12318678,0.00035616,2]
[310768790,1704721849134,-500.0,0.00035616,2]
[310768791,1704721849144,-835.81,0.00035616,2]
[310768792,1704721849154,-500.0,0.00035616,2]
[310768793,1704721849164,-497.22417374,0.00035616,2]
[310768794,1704721849174,-529.33798339,0.00035616,2]
[310768795,1704721849183,-500.0,0.00035616,2]
[310768796,1704721849193,-500.0,0.00035616,2]
[310768797,1704721849203,-500.0,0.00035616,2]
[310768798,1704721849212,-500.0,0.00035616,2]
[310768799,1704721849222,-500.0,0.00035616,2]
[310768800,1704721849232,-500.0,0.00035616,2]
[310768801,1704721849242,-500.0,0.00035616,2]
[310768802,1704721849251,-503.26027884,0.00035616,2]
[310768803,1704721849262,-500.0,0.00035616,2]
[310768804,1704721849272,-501.14820522,0.00035616,2]
[310768805,1704721849281,-500.0,0.00035616,2]
[310768806,1704721849291,-500.0,0.00035616,2]
[310768807,1704721849300,-232.73546203,0.00035616,2]
[310768808,1704721849310,-500.0,0.00035616,2]
[310768809,1704721849320,-641.4105918,0.00035616,2]
[310768810,1704721849330,-500.0,0.00035616,2]
[310768811,1704721849339,-500.0,0.00035616,2]
[310768812,1704721849351,-500.0,0.00035616,2]
[310768813,1704721849360,-500.0,0.00035616,2]
[310768814,1704721849370,-328.02325546,0.00035616,2]
[310768815,1704721849380,-502.60974127,0.00035616,2]
[310768816,1704721849389,-500.0,0.00035616,2]
[310768817,1704721849399,-500.0,0.00035616,2]
[310768818,1704721849408,-500.0,0.00035616,2]
[310768819,1704721849417,-500.0,0.00035616,2]
[310768820,1704721849427,-2369.36,0.00035616,2]
[310768821,1704721849437,-249.40477542,0.00035616,2]
[310768822,1704721849447,-500.0,0.00035616,2]
[310768823,1704721849456,-2845.41,0.00035616,2]
[310768824,1704721849466,-500.0,0.00035616,2]
[310768825,1704721849475,-500.0,0.00035616,2]
[310768826,1704721849485,-244.68207348,0.00035616,2]
[310768827,1704721849495,-500.0,0.00035616,2]
[310768828,1704721849505,-500.0,0.00035616,2]
[310768829,1704721849516,-949.8,0.00035616,2]
[310768830,1704721849525,-500.0,0.00035616,2]
[310768831,1704721849535,-500.0,0.00035616,2]
[310768832,1704721849544,-500.0,0.00035616,2]
[310768833,1704721849554,-500.0,0.00035616,2]
[310768834,1704721849563,-196.1788249,0.00035616,2]
[310768835,1704721849574,-1464.79,0.00035616,2]
[310768836,1704721849584,-2132.54,0.00035616,2]
[310768837,1704721849595,-692.72,0.00035616,2]
[310768838,1704721849605,-500.0,0.00035616,2]
[310768839,1704721849614,-500.0,0.00035616,2]
[310768840,1704721849623,-1445.49,0.00035616,2]
[310768841,1704721849632,-198.23549342,0.00035616,2]
[310768842,1704721849642,-500.0,0.00035616,2]
[310768843,1704721849651,-500.0,0.00035616,2]
[310768844,1704721849661,-514.11,0.00035616,2]
[310768845,1704721849670,-500.0,0.00035616,2]
[310768846,1704721849680,-500.0,0.00035616,2]
[310768847,1704721849689,-500.0,0.00035616,2]
[310768848,1704721849699,-500.0,0.00035616,2]
[310768849,1704721849708,-1000.0,0.00035616,2]
[310768850,1704721849719,-500.0,0.00035616,2]
[310768851,1704721849728,-500.0,0.00035616,2]
[310768852,1704721849738,-500.0,0.00035616,2]
[310768853,1704721849747,-500.0,0.00035616,2]
[310768854,1704721849757,-500.0,0.00035616,2]
[310768855,1704721849766,-15379.24,0.00035616,2]
[310768856,1704721849775,-500.0,0.00035616,2]
[310768857,1704721849784,-504.47589029,0.00035616,2]
[310768858,1704721849796,-500.0,0.00035616,2]
[310768859,1704721849805,-522.94,0.00035616,2]
[310768860,1704721849818,-500.0,0.00035616,2]
[310768861,1704721849829,-500.0,0.00035616,2]
[310768862,1704721849838,-500.0,0.00035616,2]
[310768863,1704721849849,-1001.89,0.00035616,2]
[310768864,1704721849859,-500.0,0.00035616,2]
[310768865,1704721849869,-500.0,0.00035616,2]
[310768866,1704721849878,-500.0,0.00035616,2]
[310768868,1704721849887,-500.0,0.00035616,2]
[310768869,1704721849896,-500.0,0.00035616,2]
[310768871,1704721849906,-5794.7,0.00035616,2]
[310768873,1704721849916,-500.0,0.00035616,2]
[310768874,1704721849926,-500.0,0.00035616,2]
[310768875,1704721849935,-2868.94,0.00035616,2]
[310768876,1704721849944,-1272.59,0.00035616,2]
[310768877,1704721849952,-16105.62507718,0.00035616,10]
[310768878,1704721849961,-500.0,0.00035616,2]
[310768879,1704721849971,-500.0,0.00035616,2]
[310768880,1704721849980,-2151.53,0.00035616,2]
[310768881,1704721849991,-506.52051017,0.00035616,2]
[310768882,1704721850001,-500.0,0.00035616,2]
[310768883,1704721850010,-646.61196146,0.00035616,2]
[310768884,1704721850019,-30668.49,0.00035616,2]
[310768885,1704721850029,-509.73204802,0.00035616,2]
[310768886,1704721850038,-500.0,0.00035616,2]
[310768887,1704721850048,-500.0,0.00035616,2]
[310768888,1704721850058,-500.0,0.00035616,2]
[310768889,1704721850067,-500.0,0.00035616,2]
[310768890,1704721850076,-500.0,0.00035616,2]
[310768891,1704721850086,-500.0,0.00035616,2]
[310768892,1704721850095,-500.0,0.00035616,2]
[310768893,1704721850105,-6526.57,0.00035616,2]
[310768894,1704721850114,-500.0,0.00035616,2]
[310768895,1704721850123,-2299.3,0.00035616,2]
[310768896,1704721850133,-500.0,0.00035616,2]
[310768897,1704721850142,-746.51,0.00035616,2]
[310768898,1704721850151,-500.0,0.00035616,2]
[310768899,1704721850160,-500.0,0.00035616,2]
[310768900,1704721850170,-2498.47,0.00035616,2]
[310768901,1704721850180,-500.0,0.00035616,2]
[310768902,1704721850190,-150.0,0.00035616,2]
[310768903,1704721850200,-10548.07,0.00035616,2]
[310768904,1704721850209,-500.0,0.00035616,2]
[310768905,1704721850219,-500.0,0.00035616,2]
[310768906,1704721850229,-547.36654696,0.00035616,2]
[310768907,1704721850239,-500.0,0.00035616,2]
[310768908,1704721850249,-451.57405458,0.00035616,2]
[310768909,1704721850258,-1286.74,0.00035616,2]
[310768910,1704721850266,-500.0,0.00035616,2]
[310768911,1704721850275,-500.0,0.00035616,2]
[310768912,1704721850285,-500.0,0.00035616,2]
[310768913,1704721850295,-618.76,0.00035616,2]
[310768914,1704721850304,-1221.44,0.00035616,2]
[310768915,1704721850314,-2557.61,0.00035616,2]
[310768916,1704721850324,-500.0,0.00035616,2]
[310768917,1704721850333,-500.0,0.00035616,2]
[310768918,1704721850343,-500.0,0.00035616,2]
[310768919,1704721850352,-500.0,0.00035616,2]
[310768920,1704721850362,-500.0,0.00035616,2]
[310768921,1704721850370,-500.0,0.00035616,2]
[310768922,1704721850380,-500.0,0.00035616,2]
[310768923,1704721850390,-500.0,0.00035616,2]
[310768924,1704721850400,-500.0,0.00035616,2]
[310768925,1704721850409,-500.0,0.00035616,2]
[310768926,1704721850419,-500.0,0.00035616,2]
[310768927,1704721850429,-500.0,0.00035616,2]
[310768928,1704721850439,-500.0,0.00035616,2]
[310768929,1704721850449,-284.275999,0.00035616,120]
[310768930,1704721850458,-5000.0,0.0003562,7]
[310768931,1704721850468,-643.8592784,0.00035726,14]
[310768932,1704721850478,-4000.0,0.00035798,2]
[310768933,1704721850488,-626.44,0.00035889,2]
[310768934,1704721850498,-500.0,0.0003589,2]
[310768935,1704721850509,-500.0,0.0003589,2]
[310768936,1704721850519,-500.0,0.0003589,2]
[310768937,1704721850529,-500.0,0.0003589,2]
[310768938,1704721850539,-500.0,0.0003589,2]
[310768939,1704721850549,-500.0,0.0003589,2]
[310768940,1704721850559,-500.0,0.0003589,2]
[310768941,1704721850569,-500.0,0.0003589,2]
[310768942,1704721850579,-500.0,0.0003589,2]
[310768943,1704721850590,-1653.58,0.0003589,2]
[310768944,1704721850601,-502.43719856,0.0003589,2]
[310768945,1704721850611,-500.0,0.0003589,2]
[310768946,1704721850620,-500.0,0.0003589,2]
[310768947,1704721850630,-560.16947046,0.0003589,2]
[310768948,1704721850640,-500.0,0.0003589,2]
[310768949,1704721850650,-656.83,0.0003589,2]
[310768950,1704721850659,-500.0,0.0003589,2]
[310768951,1704721850669,-153.24405059,0.0003589,2]
[310768952,1704721850679,-533.87326562,0.0003589,2]
[310768953,1704721850690,-500.0,0.0003589,2]
[310768954,1704721850700,-500.0,0.0003589,2]
[310768955,1704721850709,-265.52715192,0.0003589,2]
[310768956,1704721850719,-500.0,0.0003589,2]
[310768957,1704721850728,-500.0,0.0003589,2]
[310768958,1704721850737,-500.0,0.0003589,2]
[310768959,1704721850747,-500.0,0.0003589,2]
[310768960,1704721850757,-569.67,0.0003589,2]
[310768961,1704721850766,-500.0,0.0003589,2]
[310768962,1704721850779,-500.0,0.0003589,2]
[310768963,1704721850789,-500.0,0.0003589,2]
[310768964,1704721850802,-682.04,0.0003589,2]
[310768965,1704721850812,-534.31,0.0003589,2]
[310768966,1704721850821,-500.0,0.0003589,2]
[310768967,1704721850831,-500.0,0.0003589,2]
[310768968,1704721850841,-500.0,0.0003589,2]
[310768969,1704721850853,-500.0,0.0003589,2]
[310768970,1704721850862,-500.0,0.0003589,2]
[310768971,1704721850873,-500.0,0.0003589,2]
[310768972,1704721850882,-500.0,0.0003589,2]
[310768973,1704721850892,-500.0,0.0003589,2]
[310768974,1704721850901,-1188.95,0.0003589,2]
[310768975,1704721850910,-500.0,0.0003589,2]
[310768976,1704721850918,-500.0,0.0003589,2]
[310768977,1704721850928,-500.0,0.0003589,2]
[310768978,1704721850937,-235.64450544,0.0003589,2]
[310768979,1704721850946,-500.0,0.0003589,2]
[310768980,1704721850956,-529.70216635,0.0003589,2]
[310768981,1704721850965,-255.7714598,0.0003589,2]
[310768982,1704721850976,-500.0,0.0003589,2]
[310768983,1704721851095,-500.0,0.0003589,2]
[310768984,1704721851105,-500.0,0.0003589,2]
[310768985,1704721851115,-559.95,0.0003589,2]
[310768986,1704721851126,-500.0,0.0003589,2]
[310768987,1704721851136,-500.0,0.0003589,2]
[310768988,1704721851146,-500.0,0.0003589,2]
[310768989,1704721851156,-500.0,0.0003589,2]
[310768990,1704721851165,-500.0,0.0003589,2]
[310768991,1704721851175,-500.0,0.0003589,2]
[310768992,1704721851184,-500.0,0.0003589,2]
[310768993,1704721851193,-520.81809967,0.0003589,2]
[310768994,1704721851203,-500.0,0.0003589,2]
[310768995,1704721851212,-584.89053488,0.0003589,2]
[310768996,1704721851222,-500.0,0.0003589,2]
[310768997,1704721851231,-500.0,0.0003589,2]
[310768998,1704721851243,-500.0,0.0003589,2]
[310768999,1704721851252,-500.0,0.0003589,2]